fUSD/lending_fUSD_20240626
["ID","MTS","AMOUNT","RATE_DAILY","PERIOD"]
[330453352,1719421178002,-500.0,0.00044383,30]
[330453353,1719421178044,-500.0,0.00044383,120]
[330453354,1719421178085,-500.0,0.00044383,120]
[330453355,1719421178126,-500.0,0.00044383,120]
[330453356,1719421178168,-1380.14,0.00044383,120]
[330453357,1719421178210,-500.0,0.00044383,120]
[330453358,1719421178250,-814.09,0.00044383,120]
[330453359,1719421178290,-500.0,0.00044383,120]
[330453360,1719421178331,-1668.05,0.00044383,120]
[330453361,1719421178374,-1598.55,0.00044383,120]
[330453362,1719421178412,-818.43,0.00044383,120]
[330453363,1719421178452,-902.09,0.00044383,120]
[330453364,1719421178490,-519.45826848,0.00044383,120]
[330453365,1719421178527,-500.0,0.00044383,120]
[330453366,1719421178568,-764.49,0.00044383,120]
[330453367,1719421178608,-527.51,0.00044383,120]
[330453368,1719421178653,-870.42,0.00044384,120]
[330453369,1719421178694,-1000.0,0.00044402,30]
[330453370,1719421178736,-415.83007993,0.00044465,30]
[330453371,1719421178780,-180.3140697,0.00044465,30]
[330453372,1719421178823,-151.0,0.00044493,120]
[330453373,1719421178863,-1000.0,0.00044497,30]
[330453374,1719421178905,-1000000.0,0.000445,45]
[330453375,1719421178945,-150.0,0.00044541,30]
[330453376,1719421178986,-150.0,0.00044541,30]
[330453377,1719421179028,-150.0,0.00044541,30]
[330453378,1719421179071,-927.0,0.00044545,30]
[330453379,1719421179115,-150.0,0.00044564,120]
[330453380,1719421179158,-1000.0,0.00044591,30]
[330453381,1719421179200,-500.0,0.00044657,120]
[330453382,1719421179242,-500.0,0.00044657,120]
[330453383,1719421179283,-500.0,0.00044657,120]
[330453384,1719421179325,-500.0,0.00044657,120]
[330453385,1719421179365,-500.0,0.00044657,120]
[330453386,1719421179405,-500.0,0.00044657,120]
[330453387,1719421179443,-500.0,0.00044657,120]
[330453388,1719421179484,-500.0,0.00044657,120]
[330453389,1719421179523,-500.0,0.00044657,120]
[330453390,1719421179563,-500.0,0.00044657,120]
[330453391,1719421179603,-500.0,0.00044657,120]
[330453392,1719421179645,-500.0,0.00044657,120]
[330453393,1719421179685,-500.0,0.00044657,120]
[330453394,1719421179724,-500.0,0.00044657,120]
[330453395,1719421179769,-500.0,0.00044657,120]
[330453396,1719421179812,-500.0,0.00044657,120]
[330453397,1719421179856,-500.0,0.00044657,120]
[330453398,1719421179897,-500.0,0.00044657,120]
[330453399,1719421179938,-500.0,0.00044657,120]
[330453400,1719421179979,-500.0,0.00044657,120]
[330453401,1719421180020,-500.0,0.00044657,120]
[330453402,1719421180061,-500.0,0.00044657,120]
[330453403,1719421180103,-500.0,0.00044657,120]
[330453404,1719421180144,-500.0,0.00044657,120]
[330453405,1719421180184,-536.69116583,0.00044657,120]
[330453406,1719421180222,-500.0,0.00044657,120]
[330453407,1719421180264,-500.0,0.00044657,120]
[330453408,1719421180305,-320.74098828,0.00044657,120]
[330453409,1719421180345,-500.0,0.00044657,120]
[330453410,1719421180385,-500.0,0.00044657,120]
[330453411,1719421180425,-495.29310114,0.00044657,120]
[330453412,1719421180467,-200.0,0.00044657,120]
[330453413,1719421180507,-500.0,0.00044657,120]
[330453414,1719421180546,-185.34786318,0.00044657,120]
[330453415,1719421180586,-500.0,0.00044657,120]
[330453416,1719421180628,-500.0,0.00044657,120]
[330453417,1719421180670,-500.0,0.00044657,120]
[330453418,1719421180711,-500.0,0.00044657,120]
[330453419,1719421180754,-500.0,0.00044657,120]
[330453420,1719421180795,-500.0,0.00044657,120]
[330453421,1719421180836,-500.0,0.00044657,120]
[330453422,1719421180876,-500.0,0.00044657,120]
[330453423,1719421180918,-500.0,0.00044657,120]
[330453424,1719421180958,-500.0,0.00044657,120]
[330453425,1719421180998,-548.74338404,0.00044657,120]
[330453426,1719421181037,-500.0,0.00044657,120]
[330453427,1719421181076,-577.66036937,0.00044657,120]
[330453428,1719421181114,-500.0,0.00044657,120]
[330453429,1719421181152,-500.0,0.00044657,120]
[330453430,1719421181190,-500.0,0.00044657,120]
[330453431,1719421181227,-760.7,0.00044657,120]
[330453432,1719421181264,-500.0,0.00044657,120]
[330453433,1719421181302,-500.0,0.00044657,120]
[330453434,1719421181339,-500.0,0.00044657,120]
[330453435,1719421181376,-500.0,0.00044657,120]
[330453436,1719421181413,-1352.54,0.00044657,120]
[330453437,1719421181451,-500.0,0.00044657,120]
[330453438,1719421181489,-372.7086102,0.00044657,120]
[330453439,1719421181529,-3917.27,0.00044657,120]
[330453440,1719421181567,-500.0,0.00044657,120]
[330453441,1719421181605,-500.0,0.00044657,120]
[330453442,1719421181646,-723.08,0.00044657,120]
[330453443,1719421181685,-835.87,0.00044657,120]
[330453444,1719421181723,-1240.77,0.00044657,120]
[330453445,1719421181763,-500.0,0.00044657,120]
[330453446,1719421181802,-500.0,0.00044657,120]
[330453447,1719421181841,-608.477938,0.00044657,120]
[330453448,1719421181880,-930.25,0.00044657,120]
[330453449,1719421181918,-590.05401352,0.00044657,120]
[330453450,1719421182197,-500.0,0.00044657,120]
[330453451,1719421182240,-500.0,0.00044657,120]
[330453452,1719421182280,-1174.56,0.00044657,120]
[330453453,1719421182318,-500.0,0.00044657,120]
[330453454,1719421182357,-500.0,0.00044657,120]
[330453455,1719421182396,-500.0,0.00044657,120]
[330453456,1719421182434,-383.70826613,0.00044657,120]
[330453457,1719421182474,-959.51,0.00044657,120]
[330453458,1719421182520,-477.70674344,0.00044657,120]
[330453459,1719421182562,-500.0,0.00044657,120]
[330453460,1719421182602,-500.0,0.00044657,120]
[330453461,1719421182644,-500.0,0.00044657,120]
[330453462,1719421182686,-527.12,0.00044657,120]
[330453463,1719421182726,-500.0,0.00044657,120]
[330453464,1719421182772,-500.0,0.00044657,120]
[330453465,1719421182812,-500.0,0.00044657,120]
[330453466,1719421182852,-500.0,0.00044657,120]
[330453467,1719421182894,-588.09,0.00044657,120]
[330453468,1719421182938,-500.0,0.00044657,120]
[330453469,1719421182980,-500.0,0.00044657,120]
[330453470,1719421183022,-908.66,0.00044657,120]
[330453471,1719421183061,-500.0,0.00044657,120]
[330453472,1719421183101,-1130.57,0.00044657,120]
[330453473,1719421183140,-500.0,0.00044657,120]
[330453474,1719421183182,-500.0,0.00044657,120]
[330453475,1719421183220,-1518.34,0.00044657,120]
[330453476,1719421183259,-584.72272074,0.00044657,120]
[330453477,1719421183300,-500.0,0.00044657,120]
[330453478,1719421183338,-500.0,0.00044657,120]
[330453479,1719421183376,-500.0,0.00044657,120]
[330453480,1719421183416,-500.0,0.00044657,120]
[330453481,1719421183461,-500.0,0.00044657,120]
[330453482,1719421183501,-500.0,0.00044657,120]
[330453483,1719421183543,-500.0,0.00044657,120]
[330453484,1719421183583,-575.64,0.00044657,120]
[330453485,1719421183625,-691.59,0.00044657,120]
[330453486,1719421183666,-713.07,0.00044657,120]
[330453487,1719421183706,-500.0,0.00044657,120]
[330453488,1719421183750,-500.0,0.00044657,120]
[330453489,1719421183792,-554.95,0.00044657,120]
[330453490,1719421183832,-1564.02,0.00044657,120]
[330453491,1719421183874,-635.92,0.00044657,120]
[330453492,1719421183915,-500.0,0.00044657,120]
[330453493,1719421183956,-7752.16,0.00044657,120]
[330453494,1719421183999,-500.0,0.00044657,120]
[330453495,1719421184042,-500.0,0.00044657,120]
[330453496,1719421184085,-500.0,0.00044657,120]
[330453497,1719421184131,-500.0,0.00044657,120]
[330453498,1719421184174,-500.0,0.00044657,120]
[330453499,1719421184218,-500.0,0.00044657,120]
[330453500,1719421184260,-500.0,0.00044657,120]
[330453501,1719421184303,-500.0,0.00044657,120]
[330453502,1719421184346,-500.0,0.00044657,120]
[330453503,1719421184390,-1463.06,0.00044657,120]
[330453504,1719421184432,-500.0,0.00044657,120]
[330453505,1719421184475,-500.0,0.00044657,120]
[330453506,1719421184519,-769.74,0.00044657,120]
[330453507,1719421184562,-500.0,0.00044657,120]
[330453508,1719421184604,-500.0,0.00044657,120]
[330453509,1719421184649,-500.0,0.00044657,120]
[330453510,1719421184692,-704.96,0.00044657,120]
[330453511,1719421184733,-538.15359354,0.00044657,120]
[330453512,1719421184782,-637.44,0.00044657,120]
[330453513,1719421184826,-641.54,0.00044657,120]
[330453514,1719421184868,-500.0,0.00044657,120]
[330453515,1719421184911,-774.33,0.00044657,120]
[330453516,1719421184956,-500.0,0.00044657,120]
[330453517,1719421184998,-569.13,0.00044657,120]
[330453518,1719421185043,-786.33,0.00044657,120]
[330453519,1719421185088,-500.0,0.00044657,30]
[330453520,1719421185132,-634.62,0.00044657,120]
[330453521,1719421185172,-500.0,0.00044657,120]
[330453522,1719421185213,-500.0,0.00044657,120]
[330453523,1719421185256,-500.0,0.00044657,120]
[330453524,1719421185299,-589.46,0.00044657,120]
[330453525,1719421185340,-1166.44,0.00044657,120]
[330453526,1719421185382,-500.0,0.00044657,120]
[330453527,1719421185423,-500.0,0.00044657,120]
[330453528,1719421185465,-337.59702906,0.00044657,120]
[330453529,1719421185506,-500.0,0.00044657,120]
[330453530,1719421185548,-1515.22,0.00044657,120]
[330453531,1719421185594,-500.0,0.00044657,120]
[330453532,1719421185654,-532.62,0.00044657,120]
[330453533,1719421185704,-786.16,0.00044657,120]
[330453534,1719421185753,-500.0,0.00044657,120]
[330453535,1719421185798,-500.0,0.00044657,120]
[330453536,1719421185842,-500.0,0.00044657,120]
[330453537,1719421185885,-1182.5,0.00044657,120]
[330453538,1719421185926,-552.38859268,0.00044657,120]
[330453539,1719421185968,-3270.15,0.00044657,120]
[330453540,1719421186012,-500.0,0.00044657,120]
[330453541,1719421186054,-386.69435637,0.00044657,120]
[330453542,1719421186097,-846.45,0.00044657,120]
[330453543,1719421186140,-961.92,0.00044657,120]
[330453544,1719421186183,-500.0,0.00044657,120]
[330453545,1719421186225,-500.0,0.00044657,120]
[330453546,1719421186267,-500.0,0.00044657,120]
[330453547,1719421186309,-500.0,0.00044657,120]
[330453548,1719421186352,-720.72,0.00044657,120]
[330453549,1719421186396,-500.0,0.00044657,120]
[330453550,1719421186439,-1195.34,0.00044657,120]
[330453551,1719421186483,-500.0,0.00044657,120]
[330453552,1719421186526,-1320.06,0.00044657,120]
[330453553,1719421186567,-500.0,0.00044657,120]
[330453554,1719421186940,-647.00222694,0.00044657,120]
[330453555,1719421186986,-500.0,0.00044657,120]
[330453556,1719421187032,-500.0,0.00044657,120]
[330453557,1719421187074,-500.0,0.00044657,120]
[330453558,1719421187119,-1103.69,0.00044657,120]
[330453559,1719421187162,-500.0,0.00044657,120]
[330453560,1719421187207,-622.53,0.00044657,120]
[330453561,1719421187252,-1853.82,0.00044657,120]
[330453562,1719421187294,-500.0,0.00044657,120]
[330453563,1719421187335,-557.76906553,0.00044657,120]
[330453564,1719421187378,-500.0,0.00044657,120]
[330453565,1719421187418,-500.0,0.00044657,120]
[330453566,1719421187460,-500.0,0.00044657,120]
[330453567,1719421187501,-535.17,0.00044657,120]
[330453568,1719421187542,-500.0,0.00044657,120]
[330453569,1719421187584,-500.0,0.00044657,120]
[330453570,1719421187628,-500.0,0.00044657,120]
[330453571,1719421187671,-905.03,0.00044657,120]
[330453572,1719421187715,-500.0,0.00044657,120]
[330453573,1719421187757,-1476.22,0.00044657,120]
[330453574,1719421187798,-500.0,0.00044657,120]
[330453575,1719421187838,-500.0,0.00044657,120]
[330453576,1719421187879,-500.0,0.00044657,120]
[330453577,1719421187921,-500.0,0.00044657,120]
[330453578,1719421187963,-500.0,0.00044657,120]
[330453579,1719421188010,-500.0,0.00044657,120]
[330453580,1719421188053,-500.0,0.00044657,120]
[330453581,1719421188099,-806.53,0.00044657,120]
[330453582,1719421188143,-500.0,0.00044657,120]
[330453583,1719421188188,-561.18,0.00044657,120]
[330453584,1719421188230,-500.0,0.00044657,120]
[330453585,1719421188274,-596.85,0.00044657,120]
[330453586,1719421188314,-500.0,0.00044657,120]
[330453587,1719421188355,-511.59,0.00044657,120]
[330453588,1719421188396,-611.18,0.00044657,120]
[330453589,1719421188438,-500.0,0.00044657,120]
[330453590,1719421188481,-500.0,0.00044657,120]
[330453591,1719421188524,-500.0,0.00044657,120]
[330453592,1719421188567,-500.0,0.00044657,120]
[330453593,1719421188608,-500.0,0.00044657,120]
[330453594,1719421188649,-500.0,0.00044657,120]
[330453595,1719421188692,-636.58,0.00044657,120]
[330453596,1719421188733,-994.35,0.00044657,120]
[330453597,1719421188780,-1625.93,0.00044657,120]
[330453598,1719421188823,-846.81,0.00044657,120]
[330453599,1719421188863,-500.0,0.00044657,120]
[330453600,1719421188904,-3349.15,0.00044657,120]
[330453601,1719421188944,-500.0,0.00044657,120]
[330453602,1719421188984,-514.73,0.00044657,120]
[330453603,1719421189028,-1298.88,0.00044657,120]
[330453604,1719421189071,-500.0,0.00044657,120]
[330453605,1719421189113,-500.0,0.00044657,120]
[330453606,1719421189156,-500.0,0.00044657,120]
[330453607,1719421189196,-1256.63,0.00044657,120]
[330453608,1719421189236,-500.0,0.00044657,120]
[330453609,1719421189277,-1464.7,0.00044657,120]
[330453610,1719421189316,-1004.81,0.00044657,120]
[330453611,1719421189355,-500.0,0.00044657,120]
[330453612,1719421189393,-500.0,0.00044657,120]
[330453613,1719421189433,-500.0,0.00044657,120]
[330453614,1719421189472,-500.0,0.00044657,120]
[330453615,1719421189512,-500.0,0.00044657,120]
[330453616,1719421189552,-614.32,0.00044657,120]
[330453617,1719421189593,-500.0,0.00044657,120]
[330453618,1719421189632,-500.0,0.00044657,120]
[330453619,1719421189672,-500.0,0.00044657,120]
[330453620,1719421189711,-500.0,0.00044657,120]
[330453621,1719421189750,-563.43,0.00044657,120]
[330453622,1719421189789,-1307.72,0.00044657,120]
[330453623,1719421189829,-500.0,0.00044657,120]
[330453624,1719421189867,-500.0,0.00044657,120]
[330453625,1719421189906,-618.79613535,0.00044657,120]
[330453626,1719421189945,-500.0,0.00044657,120]
[330453627,1719421189984,-1216.1,0.00044657,120]
[330453628,1719421190024,-1998.63,0.00044657,120]
[330453629,1719421190066,-1473.31,0.00044657,120]
[330453630,1719421190105,-503.92366709,0.00044657,120]
[330453631,1719421190144,-501.39,0.00044657,120]
[330453632,1719421190182,-500.0,0.00044657,120]
[330453633,1719421190222,-500.0,0.00044657,120]
[330453634,1719421190263,-969.76,0.00044657,120]
[330453635,1719421190304,-1008.87,0.00044657,120]
[330453636,1719421190346,-1521.98,0.00044657,120]
[330453637,1719421190387,-500.0,0.00044657,120]
[330453638,1719421190428,-763.87,0.00044657,120]
[330453639,1719421190470,-1189.62,0.00044657,120]
[330453640,1719421190510,-500.0,0.00044657,120]
[330453641,1719421190552,-500.0,0.00044657,120]
[330453642,1719421190593,-500.0,0.00044657,120]
[330453643,1719421190636,-896.53,0.00044657,120]
[330453644,1719421190681,-500.0,0.00044657,120]
[330453645,1719421190722,-500.0,0.00044657,120]
[330453646,1719421190763,-993.99,0.00044657,120]
[330453647,1719421190804,-828.85,0.00044657,120]
[330453648,1719421190846,-500.0,0.00044657,120]
[330453649,1719421190885,-500.0,0.00044657,120]
[330453650,1719421190924,-500.0,0.00044657,120]
[330453651,1719421190965,-500.0,0.00044657,120]
[330453652,1719421191004,-532.6,0.00044657,120]
[330453653,1719421191046,-500.0,0.00044657,120]
[330453654,1719421191085,-500.0,0.00044657,120]
[330453655,1719421191124,-500.0,0.00044657,120]
[330453656,1719421191166,-797.83,0.00044657,120]
[330453657,1719421191453,-564.44,0.00044657,120]
[330453658,1719421191493,-692.81,0.00044657,120]
[330453659,1719421191533,-500.0,0.00044657,120]
[330453660,1719421191573,-2291.52,0.00044657,120]
[330453661,1719421191613,-1581.05,0.00044657,120]
[330453662,1719421191656,-184.01462734,0.00044657,120]
[330453663,1719421191698,-500.0,0.00044657,120]
[330453664,1719421191742,-737.06,0.00044657,120]
[330453665,1719421191783,-500.0,0.00044657,120]
[330453666,1719421191823,-500.0,0.00044657,120]
[330453667,1719421191864,-500.0,0.00044657,120]
[330453668,1719421191902,-500.0,0.00044657,120]
[330453669,1719421191940,-500.0,0.00044657,120]
[330453670,1719421191977,-500.0,0.00044657,120]
[330453671,1719421192015,-500.0,0.00044657,120]
[330453672,1719421192055,-1129.33,0.00044657,120]
[330453673,1719421192093,-932.41,0.00044657,120]
[330453674,1719421192132,-500.0,0.00044657,120]
[330453675,1719421192175,-500.0,0.00044657,120]
[330453676,1719421192215,-1469.06,0.00044657,120]
[330453677,1719421192253,-582.0,0.00044657,120]
[330453678,1719421192291,-500.0,0.00044657,120]
[330453679,1719421192329,-500.0,0.00044657,120]
[330453680,1719421192367,-500.0,0.00044657,120]
[330453681,1719421192406,-500.0,0.00044657,120]
[330453682,1719421192446,-671.27,0.00044657,120]
[330453683,1719421192486,-500.0,0.00044657,120]
[330453684,1719421192527,-500.0,0.00044657,120]
[330453685,1719421192570,-448.91,0.00044657,120]
[330453686,1719421192611,-500.0,0.00044657,120]
[330453687,1719421192655,-500.0,0.00044657,120]
[330453688,1719421192698,-586.07,0.00044657,120]
[330453689,1719421192741,-500.0,0.00044657,120]
[330453690,1719421192786,-500.0,0.00044657,120]
[330453691,1719421192829,-2242.56,0.00044657,120]
[330453692,1719421192877,-598.46,0.00044657,120]
[330453693,1719421192916,-500.0,0.00044657,120]
[330453694,1719421192955,-579.22,0.00044657,120]
[330453695,1719421192995,-500.0,0.00044657,120]
[330453696,1719421193035,-500.0,0.00044657,120]
[330453697,1719421193076,-500.0,0.00044657,120]
[330453698,1719421193118,-500.0,0.00044657,120]
[330453699,1719421193158,-500.0,0.00044657,120]
[330453700,1719421193202,-564.71,0.00044657,120]
[330453701,1719421193242,-500.0,0.00044657,120]
[330453702,1719421193282,-834.1,0.00044657,120]
[330453703,1719421193320,-1127.2,0.00044657,120]
[330453704,1719421193357,-500.0,0.00044657,120]
[330453705,1719421193395,-500.0,0.00044657,120]
[330453706,1719421193433,-555.12,0.00044657,120]
[330453707,1719421193470,-500.0,0.00044657,120]
[330453708,1719421193508,-608.54,0.00044657,120]
[330453709,1719421193547,-500.0,0.00044657,120]
[330453710,1719421193587,-500.0,0.00044657,120]
[330453711,1719421193627,-500.0,0.00044657,120]
[330453712,1719421193668,-500.0,0.00044657,120]
[330453713,1719421193708,-945.3,0.00044657,120]
[330453714,1719421193750,-500.0,0.00044657,120]
[330453715,1719421193790,-677.4,0.00044657,120]
[330453716,1719421193830,-500.0,0.00044657,120]
[330453717,1719421193873,-500.0,0.00044657,120]
[330453718,1719421193914,-500.0,0.00044657,120]
[330453719,1719421193954,-500.0,0.00044657,120]
[330453720,1719421193995,-500.0,0.00044657,120]
[330453721,1719421194038,-500.0,0.00044657,120]
[330453722,1719421194082,-1337.45,0.00044657,120]
[330453723,1719421194123,-558.63,0.00044657,120]
[330453724,1719421194166,-555.92,0.00044657,120]
[330453725,1719421194207,-500.0,0.00044657,120]
[330453726,1719421194248,-2843.14,0.00044657,120]
[330453727,1719421194286,-542.94,0.00044657,120]
[330453728,1719421194326,-500.0,0.00044657,120]
[330453729,1719421194366,-500.0,0.00044657,120]
[330453730,1719421194406,-500.0,0.00044657,120]
[330453731,1719421194446,-500.0,0.00044657,120]
[330453732,1719421194487,-500.0,0.00044657,120]
[330453733,1719421194527,-1395.76,0.00044657,120]
[330453734,1719421194566,-502.49,0.00044657,120]
[330453735,1719421194604,-1069.09,0.00044657,120]
[330453736,1719421194644,-500.0,0.00044657,120]
[330453737,1719421194685,-641.32,0.00044657,120]
[330453738,1719421194727,-500.0,0.00044657,120]
[330453739,1719421194768,-500.0,0.00044657,120]
[330453740,1719421194812,-500.0,0.00044657,120]
[330453741,1719421194854,-500.0,0.00044657,120]
[330453742,1719421194894,-500.0,0.00044657,120]
[330453743,1719421194935,-500.0,0.00044657,120]
[330453744,1719421194977,-2036.66,0.00044657,120]
[330453745,1719421195018,-2275.25,0.00044657,120]
[330453746,1719421195058,-658.19,0.00044657,120]
[330453747,1719421195099,-500.0,0.00044657,120]
[330453748,1719421195141,-1199.34,0.00044657,120]
[330453749,1719421195182,-500.0,0.00044657,120]
[330453750,1719421195222,-500.0,0.00044657,120]
[330453751,1719421195264,-500.0,0.00044657,120]
[330453752,1719421195306,-523.62454138,0.00044657,120]
[330453753,1719421195347,-500.0,0.00044657,120]
[330453754,1719421195389,-1789.52,0.00044657,120]
[330453755,1719421195432,-500.0,0.00044657,120]
[330453756,1719421195474,-1284.61,0.00044657,120]
[330453757,1719421195516,-500.0,0.00044657,120]
[330453758,1719421195560,-500.0,0.00044657,120]
[330453759,1719421195604,-500.0,0.00044657,120]
[330453760,1719421195647,-500.0,0.00044657,120]
[330453761,1719421195935,-846.26,0.00044657,120]
[330453762,1719421195976,-845.51,0.00044657,120]
[330453763,1719421196021,-1488.49,0.00044657,120]
[330453764,1719421196064,-695.35,0.00044657,120]
[330453765,1719421196108,-520.64,0.00044657,120]
[330453766,1719421196152,-500.0,0.00044657,120]
[330453767,1719421196196,-500.0,0.00044657,120]
[330453768,1719421196239,-725.83,0.00044657,120]
[330453769,1719421196282,-1158.88,0.00044657,120]
[330453770,1719421196324,-1256.42,0.00044657,120]
[330453771,1719421196366,-1273.04,0.00044657,120]
[330453772,1719421196407,-558.9,0.00044657,120]
[330453773,1719421196448,-500.0,0.00044657,120]
[330453774,1719421196488,-1329.87,0.00044657,120]
[330453775,1719421196529,-500.0,0.00044657,120]
[330453776,1719421196572,-500.0,0.00044657,120]
[330453777,1719421196615,-500.0,0.00044657,120]
[330453778,1719421196660,-500.0,0.00044657,120]
[330453779,1719421196705,-500.0,0.00044657,120]
[330453780,1719421196747,-1597.38,0.00044657,120]
[330453781,1719421196792,-500.0,0.00044657,120]
[330453782,1719421196835,-610.39355927,0.00044657,120]
[330453783,1719421196879,-580.05,0.00044657,120]
[330453784,1719421196919,-500.0,0.00044657,120]
[330453785,1719421196960,-500.0,0.00044657,120]
[330453786,1719421197002,-815.1,0.00044657,120]
[330453787,1719421197043,-1018.32,0.00044657,120]
[330453788,1719421197085,-32583.07,0.00044657,120]
[330453789,1719421197126,-1044.29,0.00044657,120]
[330453790,1719421197165,-410.09470753,0.00044657,120]
[330453791,1719421197205,-722.06,0.00044657,120]
[330453792,1719421197244,-500.0,0.00044657,120]
[330453793,1719421197284,-756.86,0.00044657,120]
[330453794,1719421197323,-500.0,0.00044657,120]
[330453795,1719421197363,-500.0,0.00044657,120]
[330453796,1719421197403,-500.0,0.00044657,120]
[330453797,1719421197442,-500.0,0.00044657,120]
[330453798,1719421197482,-500.0,0.00044657,120]
[330453799,1719421197524,-500.0,0.00044657,120]
[330453800,1719421197568,-500.0,0.00044657,120]
[330453801,1719421197611,-500.0,0.00044657,120]
[330453802,1719421197653,-500.0,0.00044657,120]
[330453803,1719421197694,-500.0,0.00044657,120]
[330453804,1719421197734,-500.0,0.00044657,120]
[330453805,1719421197779,-500.0,0.00044657,120]
[330453806,1719421197823,-500.0,0.00044657,120]
[330453807,1719421197865,-500.0,0.00044657,120]
[330453808,1719421197906,-500.0,0.00044657,120]
[330453809,1719421197948,-500.0,0.00044657,120]
[330453810,1719421197990,-1425.67,0.00044657,120]
[330453811,1719421198030,-500.0,0.00044657,120]
[330453812,1719421198070,-500.0,0.00044657,120]
[330453813,1719421198110,-500.0,0.00044657,120]
[330453814,1719421198149,-500.0,0.00044657,120]
[330453815,1719421198190,-500.0,0.00044657,120]
[330453816,1719421198231,-501.07448095,0.00044657,120]
[330453817,1719421198275,-2500.0,0.00044657,30]
[330453818,1719421198317,-2500.0,0.00044657,30]
[330453819,1719421198359,-2500.0,0.00044657,30]
[330453820,1719421198400,-1927.14,0.00044657,120]
[330453821,1719421198439,-500.0,0.00044657,120]
[330453822,1719421198480,-703.98,0.00044657,30]
[330453823,1719421198525,-500.0,0.00044657,120]
[330453824,1719421198566,-508.67149378,0.00044657,120]
[330453825,1719421198607,-500.0,0.00044657,120]
[330453826,1719421198649,-500.0,0.00044657,120]
[330453827,1719421198692,-637.05,0.00044657,120]
[330453828,1719421198734,-591.52,0.00044657,120]
[330453829,1719421198782,-1796.71,0.00044657,120]
[330453830,1719421198825,-1259.25,0.00044657,120]
[330453831,1719421198868,-500.0,0.00044657,120]
[330453832,1719421198910,-500.0,0.00044657,120]
[330453833,1719421198949,-718.33,0.00044657,120]
[330453834,1719421198990,-500.0,0.00044657,120]
[330453835,1719421199030,-500.0,0.00044657,120]
[330453836,1719421199070,-500.0,0.00044657,120]
[330453837,1719421199110,-500.0,0.00044657,120]
[330453838,1719421199151,-1360.23,0.00044657,120]
[330453839,1719421199191,-500.0,0.00044657,120]
[330453840,1719421199232,-724.96,0.00044657,120]
[330453841,1719421199272,-500.0,0.00044657,120]
[330453842,1719421199311,-500.0,0.00044657,120]
[330453843,1719421199351,-500.0,0.00044657,120]
[330453844,1719421199391,-500.0,0.00044657,120]
[330453845,1719421199430,-500.0,0.00044657,120]
[330453846,1719421199468,-500.0,0.00044657,120]
[330453847,1719421199508,-1233.89,0.00044657,120]
[330453848,1719421199546,-2331.46,0.00044657,120]
[330453849,1719421199586,-781.98,0.00044657,120]
[330453850,1719421199627,-500.0,0.00044657,120]
[330453851,1719421199667,-565.84,0.00044657,120]